Workbook

Sheet TPC
B1: University Planning | D1: PROJECT MANAGER:
B2: Design & Construction | C2: PROJECT NUMBER:Pxxx-xx-xxx | D2: CAMPUS: St. George
B3: TOTAL PROJECT COST (TPC) | C3: PROJECT NAME: xxxxxxxxxxxxxxxxxxxxxxxxxxxxxxxxxxxxxx | D3: PROJECT DURATION: X months
A4: Number | B4: Item | C4: Remarks | D4: Base Cost | E4: HST (3.41%) | F4: Cost | G4: Hard vs Soft Costs
A5: CONSTRUCTION
A6: 835730 | B6: Construction: Main Contract | D6: 100 | E6: =D6*0.0341 -> 3 | F6: =SUM(D6+E6) -> 103 | G6: H
A7: 835752 | B7: Construction: Other Contract | D7: 100 | E7: =D7*0.0341 -> 3 | F7: 103 | G7: H
A8: 835754 | B8: Secondary Effects | D8: 100 | E8: 3 | F8: 103 | G8: H
A9: 835757 | B9: Construction Contingency | D9: 100 | E9: 3 | F9: 103 | G9: H
A10: 835762 | B10: Hazardous Waste Removal | D10: 100 | E10: 3 | F10: 103 | G10: H
A11: 835765 | B11: Demolition Services | D11: 100 | E11: 3 | F11: 103 | G11: H
A12: 835768 | B12: Site Preparation | D12: 100 | E12: 3 | F12: 103 | G12: H
A13: Total Construction | F13: =SUM(F6:F12) -> $724
A14: LANDSCAPING
A15: 835755 | B15: Landscaping Services | D15: 100 | E15: 3 | F15: =SUM(D15+E15) -> 103 | G15: H
A16: Total Landscaping | F16: =F15 -> $103
A17: PERMITS, INSURANCE
A18: 835400 | B18: Licences / Permits | D18: 100 | F18: =SUM(D18+E18) -> 100 | G18: S
A19: 836700 | B19: Insurance | C19: Calculated at 0.30% of main Contract | D19: =IF(D6<2500000,"",IF(D6>2499999,D6*0.003,"")) ->  | E19: =PRODUCT(D19,0.08) -> 0 | F19: =SUM(D19,E19) -> 0 | G19: S
B20: Total Permits, Insurance | F20: =SUM(F18:F19) -> $100
A21: PROFESSIONAL FEES
A22: 835200 | B22: Consulting | D22: 0 | E22: =D22*0.0341 -> 0 | F22: =SUM(D22,E22) -> 0 | G22: S
A23: 835201 | B23: Consultants: Disbursements | D23: 100 | E23: =D23*0.0341 -> 3 | F23: =SUM(D23,E23) -> 103 | G23: S
A24: 835204 | B24: Construction Management Fees | D24: 100 | E24: =D24*0.0341 -> 3 | F24: 103 | G24: S
A25: 835206 | B25: Other Consultants | D25: 100 | E25: 3 | F25: 103 | G25: S
A26: 835210 | B26: Legal Services | D26: 100 | E26: 3 | F26: 103 | G26: S
A27: 835720 | B27: D&E Subconsultant Fees | D27: 100 | E27: 3 | F27: 103 | G27: S
A28: 835721 | B28: External Project Management Fees | D28: 100 | E28: =D28*0.0341 -> 3 | F28: 103 | G28: S
A29: 895720 | B29: Design Fees: In House | D29: =IF(D22>0,"",IF(D22=0,SUM(D6,D9)*0.12,"")) -> 24 | F29: 24 | G29: S
A30: 895721 | B30: Design: Disbursements | D30: 100 | E30: 3 | F30: 103 | G30: S
A31: 835723 | B31: Project Disbursements | D31: 100 | E31: 3 | F31: 103 | G31: S
A32: 895725 | B32: Project Management: Fees | C32: 3.50% | D32: =A71 -> 81 | F32: =SUM(D32,E32) -> 81 | G32: S
A33: Total Professional Fees | F33: =SUM(F22:F32) -> $932
A34: SERVICES TO SITE
A35: 835700 | B35: Site Services and Infrastructure | D35: 100 | E35: =D35*0.0341 -> 3 | F35: =SUM(D35+E35) -> 103 | G35: H
A36: Total Site Services | F36: =F35 -> $103
A37: COMPUTER WIRING AND TELEPHONES
A38: 821110 | B38: Equipment: Computing: Purchase | D38: 100 | E38: =D38*0.0341 -> 3 | F38: =SUM(D38+E38) -> 103 | G38: H
A39: 835010 | B39: Telephone Line Service | D39: 100 | E39: =D39*0.0341 -> 3 | F39: =SUM(D39+E39) -> 103 | G39: H
A40: Total Computer Wiring & Telephones | F40: =SUM(F38:F39) -> $207
A41: MOVING AND STAGING
A42: 837100 | B42: Moving | D42: 100 | E42: =D42*0.0341 -> 3 | F42: =SUM(D42+E42) -> 103 | G42: H
A43: 837101 | B43: Staging | D43: 100 | E43: =D43*0.0341 -> 3 | F43: =SUM(D43+E43) -> 103 | G43: H
A44: Total Moving and Staging | F44: =SUM(F42:F43) -> $207
A45: FURNISHINGS AND EQUIPMENT
A46: 820010 | B46: Furniture: Purchase | D46: 100 | E46: =D46*0.0341 -> 3 | F46: =SUM(D46+E46) -> 103 | G46: H
A47: 821010 | B47: Equipment: Purchase | D47: 100 | E47: =D47*0.0341 -> 3 | F47: =SUM(D47+E47) -> 103 | G47: H
A48: 821510 | B48: Equipment: Audio / Visual: Purchase | D48: 100 | E48: =D48*0.0341 -> 3 | F48: =SUM(D48+E48) -> 103 | G48: H
A49: 821610 | B49: Equipment: Research: Purchase | D49: 100 | E49: =D49*0.0341 -> 3 | F49: =SUM(D49+E49) -> 103 | G49: H
A50: Total Furnishings and Equipment | F50: =SUM(F46:F49) -> $414
A51: OTHERS
A52: 820011 | B52: Interior Signage: Purchase / Design | D52: 100 | E52: =D52*0.0341 -> 3 | F52: =SUM(D52+E52) -> 103 | G52: H
A53: 821325 | B53: Security and Access Systems | D53: 100 | E53: 3 | F53: 103 | G53: H
A54: 835070 | B54: Courier | D54: 100 | E54: 3 | F54: 103 | G54: S
A55: 835756 | B55: Exterior Signage: Purchase / Design | D55: 100 | E55: 3 | F55: 103 | G55: H
A56: 835764 | B56: Client Construction Expenses | D56: 100 | E56: 3 | F56: 103 | G56: S
A57: 835766 | B57: Ceremonies | D57: 100 | E57: 3 | F57: 103 | G57: S
A58: 835900 | B58: Advertising / Marketing | D58: 100 | E58: 3 | F58: 103 | G58: S
A59: 836430 | B59: Donor Recognition | D59: 100 | E59: 3 | F59: 103 | G59: H
A60: 890670 | B60: Facilities Repair/ Renovation: Internal | C60: Trades Incl. Fire-Utilities-Consultant | D60: 100 | F60: 100 | G60: S
A61: Total Others | F61: =SUM(F52:F60) -> $927
A62: SUB TOTAL: | F62: =SUM(F61+F50+F44+F40+F36+F33+F20+F16+F13) -> $3,717
A63: PROJECT CONTINGENCY
A64: 835758 | B64: Project Contingency | D64: =F62*0.025 -> 93 | F64: =SUM(D64+E64) -> 93 | G64: H
A65: Total Project Contingency | F65: =F64 -> $93
A66: FINANCE COSTS
A67: 835300 | B67: Interest Charges | D67: 100 | E67: =D67*0.0341 -> 3 | F67: =SUM(D67+E67) -> 103 | G67: S
A68: 835305 | B68: Capital Projects Financing Charges | D68: 100 | E68: =D68*0.0341 -> 3 | F68: =SUM(D68+E68) -> 103 | G68: S
A69: Total Finance Costs | F69: =SUM(F68+F67) -> $207
A70: Project Management Fees:
A71: =C32*SUM(D6+D7+D8+D9+D10+D11+D12+D15+D35+D38+D39+D42+D43+D46+D47+D48+D49+D52+D53+D55+D56+D57+D59) -> $81 | D71: TOTAL PROJECT COST: | F71: =SUM(F62+F65+F69) -> $4,017
C72: Recommended by: | D72: Approved by:
A73: Received by Director, Project Management, UPDC | C73: x | D73: x
A74: Date: | B74: INIT: | C74: Date: | D74: Date:

Sheet DRAFT (hidden)
B1: University Planning | C1: =TPC!$C$1 -> 0 | D1: =TPC!D1 -> PROJECT MANAGER:
B2: Design & Construction | C2: =TPC!$C$2 -> PROJECT NUMBER:Pxxx-xx-xxx | D2: =TPC!D2 -> CAMPUS: St. George
B3: TOTAL PROJECT COST (TPC) | C3: =TPC!$C$3 -> PROJECT NAME: xxxxxxxxxxxxxxxxxxxxxxxxxxxxxxxxxxxxxx | D3: =TPC!D3 -> PROJECT DURATION: X months
A4: Number | B4: Item | C4: Remarks | D4: Base Cost | E4: HST (3.41%) | F4: Cost | G4: Hard vs Soft Costs
A5: CONSTRUCTION
A6: 835730 | B6: Construction: Main Contract | C6: =TPC!C6 -> 0 | D6: =TPC!D6 -> 100 | E6: =TPC!E6 -> 3 | F6: =TPC!F6 -> 103 | G6: H
A7: 835752 | B7: Construction: Other Contract | C7: =TPC!C7 -> 0 | D7: =TPC!D7 -> 100 | E7: =TPC!E7 -> 3 | F7: =TPC!F7 -> 103 | G7: H
A8: 835754 | B8: Secondary Effects | C8: =TPC!C8 -> 0 | D8: =TPC!D8 -> 100 | E8: =TPC!E8 -> 3 | F8: =TPC!F8 -> 103 | G8: H
A9: 835757 | B9: Construction Contingency | C9: =TPC!C9 -> 0 | D9: =TPC!D9 -> 100 | E9: =TPC!E9 -> 3 | F9: =TPC!F9 -> 103 | G9: H
A10: 835762 | B10: Hazardous Waste Removal | C10: =TPC!C10 -> 0 | D10: =TPC!D10 -> 100 | E10: =TPC!E10 -> 3 | F10: =TPC!F10 -> 103 | G10: H
A11: 835765 | B11: Demolition Services | C11: =TPC!C11 -> 0 | D11: =TPC!D11 -> 100 | E11: =TPC!E11 -> 3 | F11: =TPC!F11 -> 103 | G11: H
A12: 835768 | B12: Site Preparation | C12: =TPC!C12 -> 0 | D12: =TPC!D12 -> 100 | E12: =TPC!E12 -> 3 | F12: =TPC!F12 -> 103 | G12: H
A13: Total Construction | F13: =TPC!$F$13 -> $724
A14: LANDSCAPING
A15: 835755 | B15: Landscaping Services | C15: =TPC!C15 -> 0 | D15: =TPC!D15 -> 100 | E15: =TPC!E15 -> 3 | F15: =TPC!F15 -> 103 | G15: H
A16: Total Landscaping | F16: =TPC!$F$16 -> $103
A17: PERMITS, INSURANCE
A18: 835400 | B18: Licences / Permits | C18: =TPC!C18 -> 0 | D18: =TPC!D18 -> 100 | E18: =TPC!E18 -> 0 | F18: =TPC!F18 -> 100 | G18: S
A19: 836700 | B19: Insurance | C19: =TPC!C19 -> Calculated at 0.30% of main Contract | D19: =TPC!D19 ->  | E19: =TPC!E19 -> 0 | F19: =TPC!F19 -> 0 | G19: S
B20: Total Permits, Insurance | F20: =TPC!$F$20 -> $100
A21: PROFESSIONAL FEES
A22: 835200 | B22: Consulting | C22: =TPC!C22 -> 0 | D22: =TPC!D22 -> 0 | E22: =TPC!E22 -> 0 | F22: =TPC!F22 -> 0 | G22: S
A23: 835201 | B23: Consultants: Disbursements | C23: =TPC!C23 -> 0 | D23: =TPC!D23 -> 100 | E23: =TPC!E23 -> 3 | F23: =TPC!F23 -> 103 | G23: S
A24: 835204 | B24: Construction Management Fees | C24: =TPC!C24 -> 0 | D24: =TPC!D24 -> 100 | E24: =TPC!E24 -> 3 | F24: =TPC!F24 -> 103 | G24: S
A25: 835206 | B25: Other Consultants | C25: =TPC!C25 -> 0 | D25: =TPC!D25 -> 100 | E25: =TPC!E25 -> 3 | F25: =TPC!F25 -> 103 | G25: S
A26: 835210 | B26: Legal Services | C26: =TPC!C26 -> 0 | D26: =TPC!D26 -> 100 | E26: =TPC!E26 -> 3 | F26: =TPC!F26 -> 103 | G26: S
A27: 835720 | B27: D&E Subconsultant Fees | C27: =TPC!C27 -> 0 | D27: =TPC!D27 -> 100 | E27: =TPC!E27 -> 3 | F27: =TPC!F27 -> 103 | G27: S
A28: 835721 | B28: External Project Management Fees | C28: =TPC!C28 -> 0 | D28: =TPC!D28 -> 100 | E28: =TPC!E28 -> 3 | F28: =TPC!F28 -> 103 | G28: S
A29: 895720 | B29: Design Fees: In House | C29: =TPC!C29 -> 0 | D29: =TPC!D29 -> 24 | E29: =TPC!E29 -> 0 | F29: =TPC!F29 -> 24 | G29: S
A30: 895721 | B30: Design: Disbursements | C30: =TPC!C30 -> 0 | D30: =TPC!D30 -> 100 | E30: =TPC!E30 -> 3 | F30: =TPC!F30 -> 103 | G30: S
A31: 835723 | B31: Project Disbursements | C31: =TPC!C31 -> 0 | D31: =TPC!D31 -> 100 | E31: =TPC!E31 -> 3 | F31: =TPC!F31 -> 103 | G31: S
A32: 895725 | B32: Project Management: Fees | C32: =TPC!C32 -> 3.50% | D32: =TPC!D32 -> $81 | E32: =TPC!E32 -> 0 | F32: =TPC!F32 -> 81 | G32: S
A33: Total Professional Fees | F33: =TPC!$F$33 -> $932
A34: SERVICES TO SITE
A35: 83570 | B35: Site Services and Infrastructure | C35: =TPC!C35 -> 0 | D35: =TPC!D35 -> 100 | E35: =TPC!E35 -> 3 | F35: =TPC!F35 -> 103 | G35: H
A36: Total Site Services | F36: =TPC!$F$36 -> $103
A37: COMPUTER WIRING AND TELEPHONES
A38: 821110 | B38: Equipment: Computing: Purchase | C38: =TPC!C38 -> 0 | D38: =TPC!D38 -> 100 | E38: =TPC!E38 -> 3 | F38: =TPC!F38 -> 103 | G38: H
A39: 835010 | B39: Telephone Line Service | C39: =TPC!C39 -> 0 | D39: =TPC!D39 -> 100 | E39: =TPC!E39 -> 3 | F39: =TPC!F39 -> 103 | G39: H
A40: Total Computer Wiring & Telephones | F40: =TPC!$F$40 -> $207
A41: MOVING AND STAGING
A42: 837100 | B42: Moving | C42: =TPC!C42 -> 0 | D42: =TPC!D42 -> 100 | E42: =TPC!E42 -> 3 | F42: =TPC!F42 -> 103 | G42: H
A43: 837101 | B43: Staging | C43: =TPC!C43 -> 0 | D43: =TPC!D43 -> 100 | E43: =TPC!E43 -> 3 | F43: =TPC!F43 -> 103 | G43: H
A44: Total Moving and Staging | F44: =TPC!$F$44 -> $207
A45: FURNISHINGS AND EQUIPMENT
A46: 820010 | B46: Furniture: Purchase | C46: =TPC!C46 -> 0 | D46: =TPC!D46 -> 100 | E46: =TPC!E46 -> 3 | F46: =TPC!F46 -> 103 | G46: H
A47: 821010 | B47: Equipment: Purchase | C47: =TPC!C47 -> 0 | D47: =TPC!D47 -> 100 | E47: =TPC!E47 -> 3 | F47: =TPC!F47 -> 103 | G47: H
A48: 821510 | B48: Equipment: Audio / Visual: Purchase | C48: =TPC!C48 -> 0 | D48: =TPC!D48 -> 100 | E48: =TPC!E48 -> 3 | F48: =TPC!F48 -> 103 | G48: H
A49: 821610 | B49: Equipment: Research: Purchase | C49: =TPC!C49 -> 0 | D49: =TPC!D49 -> 100 | E49: =TPC!E49 -> 3 | F49: =TPC!F49 -> 103 | G49: H
A50: Total Furnishings and Equipment | F50: =TPC!$F$50 -> $414
A51: OTHERS
A52: 820011 | B52: Interior Signage: Purchase / Design | C52: =TPC!C52 -> 0 | D52: =TPC!D52 -> 100 | E52: =TPC!E52 -> 3 | F52: =TPC!F52 -> 103 | G52: H
A53: 821325 | B53: Security and Access Systems | C53: =TPC!C53 -> 0 | D53: =TPC!D53 -> 100 | E53: =TPC!E53 -> 3 | F53: =TPC!F53 -> 103 | G53: H
A54: 835070 | B54: Courier | C54: =TPC!C54 -> 0 | D54: =TPC!D54 -> 100 | E54: =TPC!E54 -> 3 | F54: =TPC!F54 -> 103 | G54: S
A55: 835756 | B55: Exterior Signage: Purchase / Design | C55: =TPC!C55 -> 0 | D55: =TPC!D55 -> 100 | E55: =TPC!E55 -> 3 | F55: =TPC!F55 -> 103 | G55: H
A56: 835764 | B56: Client Construction Expenses | C56: =TPC!C56 -> 0 | D56: =TPC!D56 -> 100 | E56: =TPC!E56 -> 3 | F56: =TPC!F56 -> 103 | G56: S
A57: 835766 | B57: Ceremonies | C57: =TPC!C57 -> 0 | D57: =TPC!D57 -> 100 | E57: =TPC!E57 -> 3 | F57: =TPC!F57 -> 103 | G57: S
A58: 835900 | B58: Advertising / Marketing | C58: =TPC!C58 -> 0 | D58: =TPC!D58 -> 100 | E58: =TPC!E58 -> 3 | F58: =TPC!F58 -> 103 | G58: S
A59: 836430 | B59: Donor Recognition | C59: =TPC!C59 -> 0 | D59: =TPC!D59 -> 100 | E59: =TPC!E59 -> 3 | F59: =TPC!F59 -> 103 | G59: H
A60: 890670 | B60: Facilities Repair/ Renovation: Internal | C60: =TPC!C60 -> Trades Incl. Fire-Utilities-Consultant | D60: =TPC!D60 -> 100 | E60: =TPC!E60 -> 0 | F60: =TPC!F60 -> 100 | G60: S
A61: Total Others | F61: =TPC!$F$61 -> $927
A62: SUB TOTAL: | F62: =SUM(F61+F50+F44+F40+F36+F33+F20+F16+F13) -> $3,717
A63: PROJECT CONTINGENCY
A64: 835758 | B64: Project Contingency | C64: =TPC!$C$64 -> 0 | D64: =TPC!D64 -> 93 | E64: =TPC!E64 -> 0 | F64: =TPC!F64 -> 93 | G64: H
A65: Total Project Contingency | F65: =TPC!$F$65 -> $93
A66: FINANCE COSTS
A67: 835300 | B67: Interest Charges | C67: =TPC!C67 -> 0 | D67: =TPC!D67 -> 100 | E67: =TPC!E67 -> 3 | F67: =TPC!F67 -> 103 | G67: S
A68: 835305 | B68: Capital Projects Financing Charges | C68: =TPC!C68 -> 0 | D68: =TPC!D68 -> 100 | E68: =TPC!E68 -> 3 | F68: =TPC!F68 -> 103 | G68: S
A69: Total Finance Costs | F69: =TPC!$F$69 -> $207
A70: Project Management Fees:
A71: =TPC!$A$71 -> $81 | D71: TOTAL PROJECT COST: | F71: =TPC!$F$71 -> $4,017
A72: =TPC!$A$72 -> 0 | C72: =TPC!$C$72 -> Recommended by: | D72: =TPC!$D$72 -> Approved by:
A73: Received by Director, Project Management, UPDC | C73: x | D73: x
A74: =TPC!$A$74 -> Date: | B74: =TPC!$B$74 -> INIT: | C74: =TPC!$C$74 -> Date: | D74: =TPC!$D$74 -> Date:
